fUST/lending_fUST_20250905
["ID","MTS","AMOUNT","RATE_DAILY","PERIOD"]
[383613667,1757037047091,-485.02462279,0.00015028,2]
[383613668,1757037047102,-481.86885556,0.00015028,2]
[383613669,1757037047111,-483.91708495,0.00015028,2]
[383613670,1757037047120,-480.0,0.00015028,2]
[383613671,1757037047129,-482.81313121,0.00015028,2]
[383613672,1757037047138,-481.81267536,0.00015028,2]
[383613673,1757037047148,-486.25835412,0.00015028,2]
[383613674,1757037047157,-481.67681465,0.00015028,2]
[383613675,1757037047166,-480.0,0.00015028,2]
[383613676,1757037047176,-484.99415918,0.00015028,2]
[383613677,1757037047187,-480.0,0.00015028,2]
[383613678,1757037047196,-593.16624103,0.00015028,2]
[383613679,1757037047205,-480.0,0.00015028,2]
[383613680,1757037047214,-483.80254176,0.00015028,2]
[383613681,1757037047224,-480.0,0.00015028,2]
[383613682,1757037047233,-480.0,0.00015028,2]
[383613683,1757037047242,-484.19597826,0.00015028,2]
[383613684,1757037047251,-157.977398,0.00015028,2]
[383613685,1757037047260,-487.03300155,0.00015028,2]
[383613686,1757037047269,-483.25310997,0.00015028,2]
[383613687,1757037047278,-480.0,0.00015028,2]
[383613688,1757037047288,-480.0,0.00015028,2]
[383613689,1757037047297,-480.0,0.00015028,2]
[383613690,1757037047306,-485.57473378,0.00015028,2]
[383613691,1757037047316,-480.0,0.00015028,2]
[383613692,1757037047325,-480.0,0.00015028,2]
[383613693,1757037047335,-485.59700928,0.00015028,2]
[383613694,1757037047344,-480.0,0.00015028,2]
[383613695,1757037047353,-480.0,0.00015028,2]
[383613696,1757037047364,-151.0,0.00015028,2]
[383613697,1757037047373,-480.0,0.00015028,2]
[383613698,1757037047384,-483.42742977,0.00015028,2]
[383613699,1757037047393,-151.0,0.00015028,2]
[383613700,1757037047402,-480.0,0.00015028,2]
[383613701,1757037047411,-480.0,0.00015028,2]
[383613702,1757037047421,-483.55922391,0.00015028,2]
[383613703,1757037047431,-480.0,0.00015028,2]
[383613704,1757037047440,-480.0,0.00015028,2]
[383613705,1757037047449,-482.03935894,0.00015028,2]
[383613706,1757037047458,-480.0,0.00015028,2]
[383613707,1757037047467,-483.91630751,0.00015028,2]
[383613708,1757037047477,-480.0,0.00015028,2]
[383613709,1757037047486,-480.0,0.00015028,2]
[383613710,1757037047495,-483.19065986,0.00015028,2]
[383613711,1757037047506,-485.96043107,0.00015028,2]
[383613712,1757037047516,-1007.60167595,0.00015028,2]
[383613713,1757037047527,-480.0,0.00015028,2]
[383613714,1757037047537,-481.3214083,0.00015028,2]
[383613715,1757037047546,-480.0,0.00015028,2]
[383613716,1757037047556,-480.0,0.00015028,2]
[383613717,1757037047565,-480.0,0.00015028,2]
[383613718,1757037047574,-481.65920891,0.00015028,2]
[383613719,1757037047583,-480.0,0.00015028,2]
[383613720,1757037047592,-480.0,0.00015028,2]
[383613721,1757037047601,-483.66576651,0.00015028,2]
[383613722,1757037047610,-480.0,0.00015028,2]
[383613723,1757037047619,-482.14116731,0.00015028,2]
[383613724,1757037047629,-481.80447282,0.00015028,2]
[383613725,1757037047638,-480.0,0.00015028,2]
[383613726,1757037047647,-482.25487875,0.00015028,2]
[383613727,1757037047656,-483.11697235,0.00015028,2]
[383613728,1757037047666,-481.31597758,0.00015028,2]
[383613729,1757037047677,-161.93469,0.00015028,2]
[383613730,1757037047686,-548.94934777,0.00015028,2]
[383613731,1757037047695,-483.11535705,0.00015028,2]
[383613732,1757037047704,-481.22313218,0.00015028,2]
[383613733,1757037047713,-480.84670022,0.00015028,2]
[383613734,1757037047722,-480.0,0.00015028,2]
[383613735,1757037047731,-482.24624239,0.00015028,2]
[383613736,1757037047740,-481.2002085,0.00015028,2]
[383613737,1757037047749,-480.0,0.00015028,2]
[383613738,1757037047758,-480.0,0.00015028,2]
[383613739,1757037047767,-484.70020396,0.00015028,2]
[383613740,1757037047777,-480.0,0.00015028,2]
[383613741,1757037047786,-481.59755014,0.00015028,2]
[383613742,1757037047795,-480.0,0.00015028,2]
[383613743,1757037047804,-490.60566406,0.00015028,2]
[383613744,1757037047813,-480.0,0.00015028,2]
[383613745,1757037047822,-481.85746848,0.00015028,2]
[383613746,1757037047832,-480.0,0.00015028,2]
[383613747,1757037047842,-480.0,0.00015028,2]
[383613748,1757037047852,-480.0,0.00015028,2]
[383613749,1757037047862,-480.0,0.00015028,2]
[383613750,1757037047871,-480.0,0.00015028,2]
[383613751,1757037047880,-481.86086813,0.00015028,2]
[383613752,1757037047891,-481.32850306,0.00015028,2]
[383613753,1757037047902,-480.0,0.00015028,2]
[383613754,1757037047912,-483.49474651,0.00015028,2]
[383613755,1757037047922,-153.617272,0.00015028,2]
[383613756,1757037047931,-480.0,0.00015028,2]
[383613757,1757037047940,-480.0,0.00015028,2]
[383613758,1757037047950,-480.0,0.00015028,2]
[383613759,1757037047960,-480.0,0.00015028,2]
[383613760,1757037047970,-398.64339704,0.00015028,2]
[383613761,1757037047981,-480.0,0.00015028,2]
[383613762,1757037047992,-480.0,0.00015028,2]
[383613763,1757037048005,-480.0,0.00015028,2]
[383613764,1757037048015,-480.0,0.00015028,2]
[383613765,1757037048024,-481.47412415,0.00015028,2]
[383613766,1757037048033,-480.56019257,0.00015028,2]
[383613767,1757037048043,-483.61600234,0.00015028,2]
[383613768,1757037048052,-481.67903676,0.00015028,2]
[383613769,1757037048061,-480.43673978,0.00015028,2]
[383613770,1757037048070,-481.13125595,0.00015028,2]
[383613771,1757037048081,-360.77704396,0.00015028,2]
[383613772,1757037048092,-481.17444005,0.00015028,2]
[383613773,1757037048101,-482.68390259,0.00015028,2]
[383613774,1757037048110,-480.0,0.00015028,2]
[383613775,1757037048120,-480.0,0.00015028,2]
[383613776,1757037048129,-480.0,0.00015028,2]
[383613777,1757037048138,-482.14879565,0.00015028,2]
[383613778,1757037048147,-480.0,0.00015028,2]
[383613779,1757037048156,-482.58124369,0.00015028,2]
[383613780,1757037048165,-480.0,0.00015028,2]
[383613781,1757037048173,-480.7578831,0.00015028,2]
[383613782,1757037048182,-480.0,0.00015028,2]
[383613783,1757037048191,-462.61000079,0.00015028,2]
[383613784,1757037048200,-481.93129452,0.00015028,2]
[383613785,1757037048209,-481.80231285,0.00015028,2]
[383613786,1757037048217,-480.30672952,0.00015028,2]
[383613787,1757037048226,-480.0,0.00015028,2]
[383613788,1757037048235,-480.0,0.00015028,2]
[383613789,1757037048244,-480.0,0.00015028,2]
[383613790,1757037048253,-480.0,0.00015028,2]
[383613791,1757037048263,-480.0,0.00015028,2]
[383613792,1757037048272,-480.0,0.00015028,2]
[383613793,1757037048282,-480.0,0.00015028,2]
[383613794,1757037048291,-480.0,0.00015028,2]
[383613795,1757037048301,-489.30146605,0.00015028,2]
[383613796,1757037048310,-480.9227563,0.00015028,2]
[383613797,1757037048319,-483.23216402,0.00015028,2]
[383613798,1757037048329,-483.30775646,0.00015028,2]
[383613799,1757037048339,-481.24556929,0.00015028,2]
[383613800,1757037048348,-480.0,0.00015028,2]
[383613801,1757037048357,-482.17112736,0.00015028,2]
[383613802,1757037048367,-480.0,0.00015028,2]
[383613803,1757037048376,-480.0,0.00015028,2]
[383613804,1757037048385,-480.0,0.00015028,2]
[383613805,1757037048395,-480.0,0.00015028,2]
[383613806,1757037048405,-200.21404507,0.00015028,2]
[383613807,1757037048414,-480.0,0.00015028,2]
[383613808,1757037048424,-527.80914695,0.00015028,2]
[383613809,1757037048435,-480.0,0.00015028,2]
[383613810,1757037048445,-480.0,0.00015028,2]
[383613811,1757037048454,-480.0,0.00015028,2]
[383613812,1757037048464,-481.61521088,0.00015028,2]
[383613813,1757037048473,-483.04316715,0.00015028,2]
[383613814,1757037048483,-151.0,0.00015028,2]
[383613815,1757037048492,-151.0,0.00015028,2]
[383613816,1757037048502,-151.0,0.00015028,2]
[383613817,1757037048511,-151.0,0.00015028,2]
[383613818,1757037048520,-482.15769426,0.00015028,2]
[383613819,1757037048529,-480.0,0.00015028,2]
[383613820,1757037048539,-480.0,0.00015028,2]
[383613821,1757037048548,-306.36351148,0.00015028,2]
[383613822,1757037048557,-482.5120106,0.00015028,2]
[383613823,1757037048566,-480.0,0.00015028,2]
[383613824,1757037048576,-484.5075956,0.00015028,2]
[383613825,1757037048585,-481.75933337,0.00015028,2]
[383613826,1757037048594,-484.59144885,0.00015028,2]
[383613827,1757037048604,-165.014296,0.00015028,2]
[383613828,1757037048613,-480.0,0.00015028,2]
[383613829,1757037048622,-151.0,0.00015028,2]
[383613830,1757037048631,-151.0,0.00015028,2]
[383613831,1757037048641,-500.0,0.00015029,2]
[383613832,1757037048651,-500.0,0.00015031,2]
[383613833,1757037048661,-483.18302389,0.00015032,2]
[383613834,1757037048671,-480.70173358,0.00015032,2]
[383613835,1757037048680,-500.0,0.00015035,2]
[383613836,1757037048690,-500.0,0.00015035,2]
[383613837,1757037048699,-500.0,0.00015035,2]
[383613838,1757037048709,-500.0,0.00015036,2]
[383613839,1757037048719,-500.0,0.00015036,2]
[383613840,1757037048730,-500.0,0.00015036,2]
[383613841,1757037048740,-500.0,0.00015036,2]
[383613842,1757037048750,-415.15517824,0.00015036,2]
[383613843,1757037048759,-505.12683091,0.00015073,2]
[383613844,1757037048769,-504.27654273,0.00015073,2]
[383613845,1757037048779,-502.87038469,0.00015073,2]
[383613846,1757037048789,-293.23579526,0.00015073,2]
[383613847,1757037048799,-500.67990711,0.00015073,2]
[383613848,1757037048808,-500.68174399,0.00015073,2]
[383613849,1757037048819,-501.13151695,0.00015073,2]
[383613850,1757037048828,-503.5664288,0.00015073,2]
[383613851,1757037048838,-866.83046241,0.00015108,2]
[383613852,1757037048847,-502.77542744,0.00015173,2]
[383613853,1757037048858,-500.92419715,0.00015173,2]
[383613854,1757037048867,-507.05473267,0.00015173,2]
[383613855,1757037048877,-502.65947886,0.00015173,2]
[383613856,1757037048887,-480.0,0.00015196,2]
[383613857,1757037048896,-480.0,0.00015196,2]
[383613858,1757037048906,-480.0,0.00015196,2]
[383613859,1757037048915,-480.0,0.00015196,2]
[383613860,1757037048925,-480.0,0.00015196,2]
[383613861,1757037048935,-480.0,0.00015196,2]
[383613862,1757037048945,-480.0,0.00015196,2]
[383613863,1757037048955,-946.29,0.00015196,2]
[383613864,1757037048964,-480.0,0.00015196,2]
[383613865,1757037048973,-480.0,0.00015196,2]
[383613866,1757037048983,-480.0,0.00015196,2]
[383613867,1757037048995,-480.0,0.00015196,2]
[383613868,1757037049005,-480.0,0.00015196,2]
[383613869,1757037049015,-480.0,0.00015196,2]
[383613870,1757037049024,-480.0,0.00015196,2]
[383613871,1757037049034,-480.0,0.00015196,2]
[383613872,1757037049044,-480.0,0.00015196,2]
[383613873,1757037049054,-480.0,0.00015196,2]
[383613874,1757037049063,-480.0,0.00015196,2]
[383613875,1757037049075,-480.0,0.00015196,2]
[383613876,1757037049085,-480.0,0.00015196,2]
[383613877,1757037049095,-480.0,0.00015196,2]
[383613878,1757037049104,-480.0,0.00015197,2]
[383613879,1757037049113,-485.64916005,0.00015197,2]
[383613880,1757037049123,-480.0,0.00015197,2]
[383613881,1757037049131,-365.12335743,0.00015197,2]
[383613882,1757037049141,-480.0,0.00015197,2]
[383613883,1757037049151,-483.13844004,0.00015197,2]
[383613884,1757037049161,-480.0,0.00015197,2]
[383613885,1757037049171,-480.0,0.00015197,2]
[383613886,1757037049183,-480.0,0.00015197,2]
[383613887,1757037049193,-480.0,0.00015197,2]
[383613888,1757037049202,-480.0,0.00015197,2]
[383613889,1757037049310,-480.0,0.00015197,2]
[383613890,1757037049320,-480.0,0.00015197,2]
[383613891,1757037049330,-480.0,0.00015197,2]
[383613892,1757037049339,-480.0,0.00015197,2]
[383613893,1757037049349,-480.0,0.00015197,2]
[383613894,1757037049358,-480.0,0.00015197,2]
[383613895,1757037049368,-480.0,0.00015197,2]
[383613896,1757037049378,-480.0,0.00015197,2]
[383613897,1757037049388,-480.0,0.00015197,2]
[383613898,1757037049398,-480.0,0.00015197,2]
[383613899,1757037049407,-480.0,0.00015197,2]
[383613900,1757037049417,-480.0,0.00015197,2]
[383613901,1757037049427,-488.86954569,0.00015197,2]
[383613902,1757037049437,-483.13840077,0.00015197,2]
[383613903,1757037049446,-480.0,0.00015197,2]
[383613904,1757037049456,-485.95636202,0.00015197,2]
[383613905,1757037049466,-480.0,0.00015197,2]
[383613906,1757037049475,-480.0,0.00015197,2]
[383613907,1757037049485,-480.0,0.00015197,2]
[383613908,1757037049498,-480.0,0.00015197,2]
[383613909,1757037049508,-483.33608785,0.00015197,2]
[383613910,1757037049518,-480.0,0.00015197,2]
[383613911,1757037049527,-480.0,0.00015197,2]
[383613912,1757037049537,-480.0,0.00015197,2]
[383613913,1757037049546,-480.0,0.00015197,2]
[383613914,1757037049557,-480.0,0.00015197,2]
[383613915,1757037049566,-805.86,0.00015197,2]
[383613916,1757037049575,-480.0,0.00015197,2]
[383613917,1757037049586,-480.0,0.00015197,2]
[383613918,1757037049600,-480.0,0.00015197,2]
[383613919,1757037049610,-480.0,0.00015197,2]
[383613920,1757037049621,-480.0,0.00015197,2]
[383613921,1757037049631,-480.0,0.00015197,2]
[383613922,1757037049642,-480.0,0.00015197,2]
[383613923,1757037049652,-480.0,0.00015197,2]
[383613924,1757037049661,-480.0,0.00015197,2]
[383613925,1757037049671,-480.0,0.00015197,2]
[383613926,1757037049680,-480.0,0.00015197,2]
[383613927,1757037049690,-480.0,0.00015197,2]
[383613928,1757037049700,-484.92584034,0.00015197,2]
[383613929,1757037049711,-484.70258839,0.00015197,2]
[383613930,1757037049727,-480.0,0.00015197,2]
[383613931,1757037049736,-480.0,0.00015197,2]
[383613932,1757037049746,-480.0,0.00015197,2]
[383613933,1757037049754,-480.0,0.00015197,2]
[383613934,1757037049764,-480.0,0.00015197,2]
[383613935,1757037049773,-414.78455413,0.00015197,2]
[383613936,1757037049782,-480.0,0.00015197,2]
[383613937,1757037049790,-481.84731722,0.00015197,2]
[383613938,1757037049800,-480.0,0.00015197,2]
[383613939,1757037049809,-480.0,0.00015197,2]
[383613940,1757037049819,-480.0,0.00015197,2]
[383613941,1757037049828,-480.0,0.00015197,2]
[383613942,1757037049838,-493.86824481,0.00015197,2]
[383613943,1757037049847,-480.0,0.00015197,2]
[383613944,1757037049856,-480.0,0.00015197,2]
[383613945,1757037049866,-480.0,0.00015197,2]
[383613946,1757037049876,-480.0,0.00015197,2]
[383613947,1757037049885,-480.0,0.00015197,2]
[383613948,1757037049894,-480.0,0.00015197,2]
[383613949,1757037049904,-480.0,0.00015197,2]
[383613950,1757037049914,-480.0,0.00015197,2]
[383613951,1757037049923,-480.0,0.00015197,2]
[383613952,1757037049933,-480.0,0.00015197,2]
[383613953,1757037049942,-485.06553589,0.00015197,2]
[383613954,1757037049951,-939.41,0.00015197,2]
[383613955,1757037049961,-266.473872,0.00015197,2]
[383613956,1757037049970,-480.0,0.00015197,2]
[383613957,1757037049979,-480.0,0.00015197,2]
[383613958,1757037049989,-482.65669943,0.00015197,2]
[383613959,1757037050000,-480.0,0.00015197,2]
[383613960,1757037050010,-151.0,0.00015197,2]
[383613961,1757037050021,-480.0,0.00015197,2]
[383613962,1757037050031,-482.7514425,0.00015197,2]
[383613963,1757037050042,-480.0,0.00015199,2]
[383613964,1757037050051,-480.0,0.00015199,2]
[383613965,1757037050061,-480.0,0.00015199,2]
[383613966,1757037050071,-480.0,0.00015199,2]
[383613967,1757037050081,-480.0,0.00015199,2]
[383613968,1757037050091,-480.0,0.00015199,2]
[383613969,1757037050100,-151.0,0.00015199,2]
[383613970,1757037050110,-151.0,0.00015199,2]
[383613971,1757037050119,-480.0,0.00015199,2]
[383613972,1757037050128,-480.0,0.00015199,2]
[383613973,1757037050138,-480.0,0.00015199,2]
[383613974,1757037050147,-480.0,0.00015199,2]
[383613975,1757037050156,-480.0,0.00015199,2]
[383613976,1757037050166,-483.40975867,0.00015199,2]
[383613977,1757037050176,-480.0,0.00015199,2]
[383613978,1757037050186,-192.84628365,0.00015199,2]
[383613979,1757037050195,-480.0,0.00015199,2]
[383613980,1757037050204,-480.0,0.00015199,2]
[383613981,1757037050214,-480.0,0.00015199,2]
[383613982,1757037050224,-480.0,0.00015199,2]
[383613983,1757037050233,-480.0,0.00015199,2]
[383613984,1757037050242,-480.0,0.00015199,2]
[383613985,1757037050251,-480.0,0.00015199,2]
[383613986,1757037050261,-480.0,0.00015199,2]
[383613987,1757037050270,-480.0,0.00015199,2]
[383613988,1757037050279,-480.0,0.00015199,2]
[383613989,1757037050288,-480.0,0.00015199,2]
[383613990,1757037050297,-480.0,0.00015199,2]
[383613991,1757037050307,-480.0,0.00015199,2]
[383613992,1757037050316,-480.0,0.00015199,2]
[383613993,1757037050326,-480.0,0.00015199,2]
[383613994,1757037050336,-480.0,0.00015199,2]
[383613995,1757037050346,-483.4053153,0.00015199,2]
[383613996,1757037050356,-480.0,0.00015199,2]
[383613997,1757037050365,-205.92640107,0.00015199,2]
[383613998,1757037050375,-226.92371856,0.00015199,2]
[383613999,1757037050386,-480.0,0.00015199,2]
[383614000,1757037050396,-482.69281301,0.00015199,2]
[383614001,1757037050406,-480.0,0.00015199,2]
[383614002,1757037050416,-480.0,0.00015199,2]
[383614003,1757037050426,-480.0,0.00015199,2]
[383614004,1757037050437,-480.0,0.00015199,2]
[383614005,1757037050447,-211.63944006,0.00015199,2]
[383614006,1757037050456,-480.0,0.00015199,2]
[383614007,1757037050466,-483.62144143,0.00015199,2]
[383614008,1757037050475,-480.0,0.00015199,2]
[383614009,1757037050484,-480.0,0.00015199,2]
[383614010,1757037050493,-480.0,0.00015199,2]
[383614011,1757037050503,-480.0,0.00015199,2]
[383614012,1757037050512,-480.0,0.00015199,2]
[383614013,1757037050522,-486.81709481,0.00015199,2]
[383614014,1757037050531,-480.0,0.00015199,2]
[383614015,1757037050540,-484.66961677,0.00015199,2]
[383614016,1757037050550,-480.0,0.00015199,2]
[383614017,1757037050559,-480.0,0.00015199,2]
[383614018,1757037050568,-480.0,0.00015199,2]
[383614019,1757037050579,-480.0,0.00015199,2]
[383614020,1757037050596,-480.0,0.00015199,2]
[383614021,1757037050605,-491.95220046,0.00015199,2]
[383614022,1757037050615,-7861.3,0.00015199,2]
[383614023,1757037050624,-482.91381247,0.00015199,2]
[383614024,1757037050633,-480.0,0.00015199,2]
[383614025,1757037050643,-894.58,0.00015199,2]
[383614026,1757037050653,-480.0,0.00015199,2]
[383614027,1757037050665,-480.0,0.00015199,2]
[383614028,1757037050675,-480.0,0.00015199,2]
[383614029,1757037050684,-480.0,0.00015199,2]
[383614030,1757037050694,-480.0,0.00015199,2]
[383614031,1757037050703,-480.0,0.00015199,2]
[383614032,1757037050712,-480.0,0.00015199,2]
[383614033,1757037050722,-480.0,0.00015199,2]
[383614034,1757037050731,-480.0,0.00015199,2]
[383614035,1757037050740,-480.0,0.00015199,2]
[383614036,1757037050750,-480.0,0.00015199,2]
[383614037,1757037050760,-480.0,0.00015199,2]
[383614038,1757037050770,-480.0,0.00015199,2]
[383614039,1757037050780,-585.25621287,0.00015199,2]
[383614040,1757037050792,-151.0,0.00015201,2]
[383614041,1757037050802,-213.032146,0.00015201,2]
[383614042,1757037050811,-158.27277284,0.00015202,2]
[383614043,1757037050821,-866.83046241,0.00015202,2]
[383614044,1757037050830,-505.74159859,0.00015203,2]
[383614045,1757037050839,-485.19176637,0.00015302,2]
[383614046,1757037050848,-369.60791477,0.00015302,2]
[383614047,1757037050857,-483.46965711,0.00015302,2]
[383614048,1757037050866,-483.59021853,0.00015302,2]
[383614049,1757037050876,-484.35124017,0.00015302,2]
[383614050,1757037050885,-487.97195626,0.00015302,2]
[383614051,1757037050894,-480.0,0.00015302,2]
[383614052,1757037050904,-491.04362996,0.00015302,2]
[383614053,1757037050914,-484.09273611,0.00015302,2]
[383614054,1757037050924,-283.53259457,0.00015302,2]
[383614055,1757037050935,-482.89238631,0.00015302,2]
[383614056,1757037050944,-480.0,0.00015302,2]
[383614057,1757037050953,-480.0,0.00015302,2]
[383614058,1757037050963,-482.80483776,0.00015302,2]
[383614059,1757037050972,-485.87315177,0.00015302,2]
[383614060,1757037050981,-482.52322204,0.00015302,2]
[383614061,1757037050991,-480.0,0.00015302,2]
[383614062,1757037051005,-480.0,0.00015302,2]
[383614063,1757037051015,-483.40222225,0.00015302,2]
[383614064,1757037051024,-480.0,0.00015302,2]
[383614065,1757037051034,-480.0,0.00015302,2]
[383614066,1757037051043,-480.0,0.00015302,2]
[383614067,1757037051053,-482.051124,0.00015302,2]
[383614068,1757037051061,-480.0,0.00015302,2]
[383614069,1757037051072,-480.0,0.00015302,2]
[383614070,1757037051081,-480.0,0.00015302,2]
[383614071,1757037051089,-480.0,0.00015302,2]
[383614072,1757037051098,-480.0,0.00015302,2]
[383614073,1757037051106,-480.0,0.00015302,2]
[383614074,1757037051113,-483.13203873,0.00015302,2]
[383614075,1757037051122,-480.0,0.00015302,2]
[383614076,1757037051131,-480.0,0.00015302,2]
[383614077,1757037051141,-480.0,0.00015302,2]
[383614078,1757037051150,-480.0,0.00015302,2]
[383614079,1757037051160,-480.0,0.00015302,2]
[383614080,1757037051170,-480.0,0.00015302,2]
[383614081,1757037051179,-481.61389483,0.00015302,2]
[383614082,1757037051188,-492.79063243,0.00015302,2]
[383614083,1757037051198,-482.79009545,0.00015302,2]
[383614084,1757037051207,-480.0,0.00015302,2]
[383614085,1757037051216,-485.59103841,0.00015302,2]
[383614086,1757037051226,-480.0,0.00015302,2]
[383614087,1757037051235,-480.0,0.00015302,2]
[383614088,1757037051244,-484.25559147,0.00015302,2]
[383614089,1757037051253,-480.0,0.00015302,2]
[383614090,1757037051262,-483.50860701,0.00015302,2]
[383614091,1757037051272,-480.0,0.00015302,2]
[383614092,1757037051281,-482.02991904,0.00015302,2]
[383614093,1757037051290,-480.0,0.00015302,2]
[383614094,1757037051300,-480.0,0.00015302,2]
[383614095,1757037051309,-482.51624154,0.00015302,2]
[383614096,1757037051319,-151.0,0.00015302,2]
[383614097,1757037051328,-480.0,0.00015302,2]
[383614098,1757037051337,-301.537897,0.00015302,2]
[383614099,1757037051346,-483.17847952,0.00015302,2]
[383614100,1757037051355,-468.44734507,0.00015302,2]
[383614101,1757037051632,-16.09456798,0.00015302,2]
[383614102,1757037051642,-159.2795644,0.00015302,2]
[383614103,1757037051651,-484.9032161,0.00015302,2]
[383614104,1757037051660,-526.89250938,0.00015302,2]
[383614105,1757037051670,-482.19542122,0.00015302,2]
[383614106,1757037051679,-480.0,0.00015302,2]
[383614107,1757037051689,-480.0,0.00015302,2]
[383614108,1757037051698,-305.41220266,0.00015302,2]
[383614109,1757037051718,-174.58779734,0.00015302,2]
[383614110,1757037051728,-449.30577681,0.00015302,2]
[383614111,1757037051763,-30.69422319,0.00015302,2]
[383614112,1757037051772,-480.0,0.00015302,2]
[383614113,1757037051783,-273.14138374,0.00015302,2]
[383614114,1757037051793,-232.74332234,0.00015302,2]
[383614115,1757037051805,-247.25667766,0.00015302,2]
[383614116,1757037051815,-480.0,0.00015302,2]
[383614117,1757037051824,-480.0,0.00015302,2]
[383614118,1757037051833,-483.04008563,0.00015302,2]
[383614119,1757037051842,-482.66597004,0.00015302,2]
[383614120,1757037051852,-480.0,0.00015302,2]
[383614121,1757037051861,-480.0,0.00015302,2]
[383614122,1757037051870,-235.84895196,0.00015302,2]
[383614123,1757037051879,-482.52024538,0.00015302,2]
[383614124,1757037051889,-578.576008,0.00015302,2]
[383614125,1757037051898,-480.0,0.00015302,2]
[383614126,1757037051907,-485.62325987,0.00015302,2]
[383614127,1757037051918,-480.0,0.00015302,2]
[383614128,1757037051927,-581.27397124,0.00015302,2]
[383614129,1757037051936,-480.0,0.00015302,2]
[383614130,1757037051946,-480.0,0.00015302,2]
[383614131,1757037051955,-480.0,0.00015302,2]
[383614132,1757037051965,-480.0,0.00015302,2]
[383614133,1757037051975,-308.94442929,0.00015302,2]
[383614134,1757037051984,-482.81953898,0.00015302,2]
[383614135,1757037051996,-620.1564419,0.00015302,2]
[383614136,1757037052007,-480.0,0.00015302,2]
[383614137,1757037052016,-480.0,0.00015302,2]
[383614138,1757037052026,-501.02655665,0.00015302,2]
[383614139,1757037052035,-417.21376988,0.00015302,2]
[383614140,1757037052046,-613.55790752,0.00015302,2]
[383614141,1757037052055,-480.0,0.00015302,2]
[383614142,1757037052064,-483.37393803,0.00015302,2]
[383614143,1757037052076,-480.0,0.00015302,2]
[383614144,1757037052085,-480.86948814,0.00015302,2]
[383614145,1757037052094,-480.0,0.00015302,2]
[383614146,1757037052103,-484.26442465,0.00015302,2]
[383614147,1757037052112,-482.56395685,0.00015302,2]
[383614148,1757037052121,-480.0,0.00015302,2]
[383614149,1757037052130,-605.56740129,0.00015302,2]
[383614150,1757037052140,-113.7341191,0.00015302,2]
[383614151,1757037052151,-369.65849122,0.00015302,2]
[383614152,1757037052161,-502.79077304,0.00015302,2]
[383614153,1757037052170,-162.87208868,0.00015302,2]
[383614154,1757037052179,-480.0,0.00015302,2]
[383614155,1757037052189,-480.0,0.00015302,2]
[383614156,1757037052198,-295.12062206,0.00015302,2]
[383614157,1757037052207,-481.0585334,0.00015302,2]
[383614158,1757037052217,-480.0,0.00015302,2]
[383614159,1757037052226,-480.0,0.00015302,2]
[383614160,1757037052235,-485.7085584,0.00015302,2]
[383614161,1757037052245,-480.0,0.00015302,2]
[383614162,1757037052254,-485.70445763,0.00015302,2]
[383614163,1757037052263,-481.58313729,0.00015302,2]
[383614164,1757037052275,-3.50165919,0.00015302,2]
[383614165,1757037052284,-262.31274785,0.00015302,2]
[383614166,1757037052293,-480.0,0.00015302,2]